bitfinex-derivatives/quotes_BTCF0:USTF0_20241231
["timestamp","ask_amount","ask_price","bid_price","bid_amount"]
[1735619851937,0.414794,92764.0,92757.0,0.3608]
[1735619852333,0.414794,92764.0,92761.0,0.053996]
[1735619852538,0.414794,92764.0,92761.0,0.033996]
[1735619853841,0.422794,92764.0,92761.0,0.034996]
[1735619854840,0.428794,92764.0,92761.0,0.034996]
[1735619855640,0.428794,92764.0,92761.0,0.035996]
[1735619856635,0.3748,92764.0,92762.0,0.053995]
[1735619856843,0.014,92764.0,92762.0,0.053995]
[1735619857436,0.014,92764.0,92762.0,0.033995]
[1735619858033,0.014,92764.0,92762.0,0.034995]
[1735619858230,0.014,92764.0,92762.0,0.035995]
[1735619862646,0.014,92764.0,92762.0,0.002]
[1735619862943,0.014,92764.0,92762.0,0.055995]
[1735619865343,0.014,92764.0,92762.0,0.0833431]
[1735619867444,0.014,92764.0,92762.0,0.0633431]
[1735619868040,0.014,92764.0,92763.0,0.3608]
[1735619869147,0.008,92764.0,92763.0,0.3608]
[1735619869448,0.014,92764.0,92763.0,0.3618]
[1735619869654,0.006,92764.0,92763.0,0.3628]
[1735619869948,0.015,92764.0,92763.0,0.3628]
[1735619870545,0.015,92764.0,92763.0,0.002]
[1735619886152,0.006,92764.0,92763.0,0.001]
[1735619886350,0.009,92764.0,92763.0,0.001]
[1735619887158,0.057994,92764.0,92762.0,0.035995]
[1735619887553,0.057994,92764.0,92760.0,0.02865972]
[1735619887755,0.057994,92764.0,92756.0,0.3608]
[1735619887949,0.057994,92764.0,92762.0,0.053995]
[1735619888358,0.057994,92764.0,92763.0,0.3608]
[1735619888764,0.056994,92764.0,92763.0,0.3608]
[1735619888961,0.053994,92764.0,92763.0,0.3608]
[1735619889154,0.056994,92764.0,92763.0,0.3608]
[1735619889554,0.053994,92764.0,92763.0,0.3608]
[1735619889755,0.057994,92764.0,92763.0,0.3608]
[1735619890559,0.058994,92764.0,92763.0,0.3608]
[1735619890951,0.058994,92764.0,92754.0,0.07339016]
[1735619891161,0.058994,92764.0,92753.0,0.19373275]
[1735619891162,0.054,92754.0,92753.0,0.19373275]
[1735619891364,0.054,92754.0,92752.0,0.55453275]
[1735619891866,0.053996,92760.0,92756.0,0.053998]
[1735619892456,0.053996,92760.0,92756.0,0.033998]
[1735619892759,0.053999,92756.0,92752.0,0.3608]
[1735619893265,0.001,92754.0,92752.0,0.3608]
[1735619893659,0.003,92760.0,92753.0,0.3608]
[1735619893860,0.054,92754.0,92753.0,0.3608]
[1735619895567,0.054003,92750.0,92746.0,0.054004]
[1735619896356,0.054006,92745.0,92734.0,0.3608]
[1735619896564,0.054006,92745.0,92741.0,0.054007]
[1735619896870,0.054009,92738.0,92734.0,0.3608]
[1735619897173,0.054011,92735.0,92734.0,0.3608]
[1735619897366,0.053011,92735.0,92734.0,0.3608]
[1735619897772,0.052011,92735.0,92734.0,0.3608]
[1735619898171,0.052011,92735.0,92734.0,0.3408]
[1735619899271,0.055011,92735.0,92734.0,0.3408]
[1735619899865,0.052011,92735.0,92734.0,0.3408]
[1735619900069,0.056011,92735.0,92734.0,0.3408]
[1735619900873,0.057011,92735.0,92734.0,0.3408]
[1735619902564,0.057011,92735.0,92734.0,0.3208]
[1735619904379,0.005,92735.0,92734.0,0.3208]
[1735619904676,0.004,92735.0,92734.0,0.3208]
[1735619904865,0.004,92735.0,92734.0,1.8208]
[1735619905566,0.004,92735.0,92734.0,1.874812]
[1735619905567,0.001,92735.0,92734.0,1.874812]
[1735619906162,0.001,92735.0,92734.0,1.877812]
[1735619907269,0.054006,92744.0,92734.0,1.8258]
[1735619907465,0.054006,92744.0,92742.0,0.3408]
[1735619907777,0.054008,92741.0,92737.0,0.054009]
[1735619912572,0.054008,92741.0,92737.0,0.034009]
[1735619913577,0.054008,92740.0,92737.0,0.034009]
[1735619913778,0.054009,92739.0,92737.0,0.034009]
[1735619914775,0.05401,92736.0,92734.0,0.3208]
[1735619916076,0.001,92739.0,92735.0,0.3608]
[1735619916276,0.05601,92736.0,92735.0,0.3608]
[1735619916878,0.05401,92736.0,92735.0,0.3608]
[1735619917087,0.05701,92736.0,92735.0,0.3608]
[1735619918078,0.05801,92736.0,92735.0,0.3608]
[1735619919778,0.05901,92736.0,92735.0,0.3608]
[1735619920378,0.05501,92736.0,92735.0,0.3608]
[1735619920576,0.06001,92736.0,92735.0,0.3608]
[1735619921294,0.05901,92736.0,92735.0,0.3608]
[1735619921483,0.06001,92736.0,92735.0,0.3608]
[1735619922396,0.06001,92736.0,92724.0,0.3608]
[1735619922397,0.054014,92729.0,92724.0,0.3608]
[1735619922583,0.054019,92722.0,92718.0,0.01087234]
[1735619924081,0.054019,92722.0,92718.0,0.08927261]
[1735619924482,0.054019,92722.0,92718.0,0.09127261]
[1735619925782,0.054019,92722.0,92718.0,0.09527261]
[1735619926384,0.054019,92722.0,92718.0,0.09427261]
[1735619927379,0.054019,92722.0,92718.0,0.45507261]
[1735619928379,0.054019,92722.0,92718.0,0.44420027]
[1735619929191,0.054019,92722.0,92718.0,0.39017927]
[1735619929393,0.054019,92722.0,92721.0,0.054019]
[1735619929896,0.054006,92743.0,92723.0,0.054017]
[1735619929897,0.054016,92727.0,92723.0,0.054017]
[1735619930094,0.054016,92727.0,92726.0,0.3608]
[1735619932591,0.054016,92727.0,92726.0,0.3408]
[1735619933495,0.02486934,92732.0,92725.0,0.3608]
[1735619933697,0.054016,92726.0,92725.0,0.3608]
[1735619933893,0.053016,92726.0,92725.0,0.3608]
[1735619934699,0.053016,92726.0,92725.0,0.3618]
[1735619934993,0.054013,92733.0,92725.0,0.3618]
[1735619935200,0.054013,92733.0,92731.0,0.054013]
[1735619936800,0.054013,92733.0,92731.0,0.055013]
[1735619937302,0.054009,92738.0,92734.0,0.054011]
[1735619937493,0.054009,92738.0,92734.0,0.034011]
[1735619938096,0.05401,92737.0,92734.0,0.034011]
[1735619938505,0.054011,92736.0,92734.0,0.034011]
[1735619940386,0.057011,92736.0,92734.0,0.034011]
[1735619941302,0.058011,92736.0,92734.0,0.034011]
[1735619942395,0.058011,92736.0,92734.0,0.014011]
[1735619942598,0.054012,92735.0,92734.0,0.054011]
[1735619945091,0.055012,92735.0,92734.0,0.054011]
[1735619945695,0.059012,92735.0,92734.0,0.054011]
[1735619946393,0.24678749,92746.0,92734.0,0.054011]
[1735619946699,0.24678749,92746.0,92736.0,0.07339016]
[1735619946999,0.05401,92737.0,92736.0,0.07339016]
[1735619947200,0.054011,92735.0,92734.0,0.054011]
[1735619947502,0.054011,92735.0,92734.0,0.034011]
[1735619948400,0.054012,92733.0,92732.0,0.3608]
[1735619949702,0.054012,92733.0,92732.0,0.38486526]
[1735619950002,0.055012,92733.0,92732.0,0.38486526]
[1735619952289,0.055012,92733.0,92732.0,0.3608]
[1735619952494,0.055012,92733.0,92732.0,0.3408]
[1735619955698,0.055012,92733.0,92732.0,0.3608]
[1735619958198,0.055012,92733.0,92732.0,0.3408]
[1735619962411,0.055012,92733.0,92732.0,0.3208]
[1735619962806,0.055012,92733.0,92732.0,0.3608]
[1735619963007,0.055012,92733.0,92731.0,0.054013]
[1735619964208,0.056012,92733.0,92731.0,0.054013]
[1735619967112,0.056012,92733.0,92732.0,0.3608]
[1735619967620,0.056012,92733.0,92732.0,0.3408]
[1735619968417,0.057012,92733.0,92732.0,0.3408]
[1735619969119,0.055012,92733.0,92732.0,0.3408]
[1735619969320,0.057012,92733.0,92732.0,0.3408]
[1735619972417,0.057012,92733.0,92732.0,0.3208]
[1735619977313,0.057012,92733.0,92732.0,0.51453275]
[1735619977620,0.057012,92733.0,92732.0,0.19373275]
[1735619977819,0.417812,92733.0,92732.0,0.19373275]
[1735619978523,0.054016,92726.0,92725.0,0.19373275]
[1735619979420,0.054016,92726.0,92720.0,0.17123154]
[1735619979421,0.3648,92733.0,92720.0,0.17123154]
[1735619979725,0.054018,92724.0,92720.0,0.17123154]
[1735619979923,0.054018,92724.0,92720.0,0.02445122]
[1735619980116,0.054018,92724.0,92719.0,0.05402]
[1735619980117,0.053018,92724.0,92719.0,0.05402]
[1735619980317,0.054019,92722.0,92719.0,0.05402]
[1735619980714,0.054019,92722.0,92720.0,0.003]
[1735619980921,0.054019,92722.0,92720.0,0.004]
[1735619981618,0.054019,92722.0,92720.0,0.058019]
[1735619981816,0.054019,92722.0,92720.0,0.25175175]
[1735619982226,0.0337,92740.0,92721.0,0.3608]
[1735619982418,0.3608,92752.0,92732.0,0.3608]
[1735619982419,0.054011,92735.0,92732.0,0.3608]
[1735619982623,0.3608,92744.0,92732.0,0.3408]
[1735619982826,0.0353,92743.0,92733.0,1.5]
[1735619983026,0.0706,92743.0,92733.0,1.5]
[1735619983220,0.0706,92743.0,92732.0,0.3408]
[1735619983429,0.054012,92733.0,92732.0,0.3408]
[1735619984129,0.054009,92739.0,92733.0,0.054012]
[1735619985820,0.054009,92739.0,92732.0,0.3408]
[1735619986017,0.054009,92739.0,92735.0,0.054011]
[1735619986932,0.057009,92739.0,92735.0,0.054011]
[1735619987230,0.055009,92739.0,92735.0,0.054011]
[1735619987430,0.058009,92739.0,92735.0,0.034011]
[1735619988926,0.059009,92739.0,92735.0,0.034011]
[1735619989633,0.058009,92739.0,92735.0,0.034011]
[1735619990728,0.059009,92739.0,92735.0,0.034011]
[1735619990927,0.005,92739.0,92735.0,0.034011]
[1735619991126,0.05401,92737.0,92735.0,0.034011]
[1735619992530,0.05501,92737.0,92732.0,0.3408]
[1735619993026,0.05501,92737.0,92735.0,0.054011]
[1735619993427,0.05401,92737.0,92735.0,0.054011]
[1735619993628,0.05801,92737.0,92735.0,0.054011]
[1735619995036,0.05401,92737.0,92735.0,0.054011]
[1735619997531,0.05401,92737.0,92735.0,0.034011]
[1735620000134,0.05501,92737.0,92735.0,0.034011]
[1735620002540,0.05501,92737.0,92732.0,0.3408]
[1735620002938,0.05501,92737.0,92735.0,0.054011]
[1735620005642,0.05401,92737.0,92735.0,0.054011]
[1735620007546,0.05401,92737.0,92735.0,0.034011]
[1735620010343,0.054012,92733.0,92732.0,0.3408]
[1735620012242,0.054012,92733.0,92732.0,0.3418]
[1735620012438,0.054012,92733.0,92732.0,0.1757811]
[1735620012638,0.414812,92733.0,92732.0,0.1757811]
[1735620013332,0.414812,92733.0,92732.0,0.0653811]
[1735620013637,0.054021,92718.0,92716.0,0.00161771]
[1735620014947,0.054021,92718.0,92716.0,0.00361771]
[1735620016541,0.054021,92718.0,92716.0,0.00761771]
[1735620019835,0.07618644,92718.0,92716.0,0.00761771]
[1735620023538,0.07618644,92718.0,92716.0,0.006]
[1735620030140,0.07618644,92718.0,92701.0,0.0337]
[1735620030141,0.0352,92717.0,92701.0,0.0337]
[1735620030345,0.05403,92702.0,92701.0,0.0337]
[1735620030947,0.3608,92706.0,92697.0,0.05565105]
[1735620031243,0.054032,92699.0,92697.0,0.05565105]
[1735620031443,0.049032,92699.0,92697.0,0.05565105]
[1735620032753,0.040032,92699.0,92697.0,0.05565105]
[1735620033350,0.041032,92699.0,92697.0,0.06965105]
[1735620034546,0.041032,92699.0,92697.0,0.06465105]
[1735620034856,0.041032,92699.0,92697.0,0.06965105]
[1735620036851,0.041032,92699.0,92697.0,0.01561805]
[1735620046947,0.054043,92680.0,92667.0,0.3608]
[1735620047148,0.054043,92680.0,92677.0,0.3951]
[1735620048053,0.054044,92679.0,92677.0,0.3951]
[1735620048650,0.050044,92679.0,92677.0,0.3951]
[1735620049046,0.049044,92679.0,92677.0,0.3951]
[1735620049651,0.051044,92679.0,92677.0,0.3951]
[1735620052459,0.051044,92679.0,92677.0,0.3751]
[1735620053057,0.051044,92679.0,92677.0,0.0143]
[1735620057459,0.054045,92677.0,92675.0,0.0663]
[1735620058767,0.055045,92677.0,92675.0,0.0663]
[1735620060563,0.054046,92674.0,92673.0,0.3608]
[1735620064069,0.07583028,92674.0,92673.0,0.3608]
[1735620065773,0.054051,92666.0,92665.0,0.0335]
[1735620068272,0.055051,92666.0,92665.0,0.0335]
[1735620068575,0.055051,92666.0,92665.0,0.0345]
[1735620070776,0.055051,92666.0,92665.0,0.001]
[1735620072075,0.055051,92666.0,92650.0,0.0697]
[1735620072076,0.054057,92656.0,92650.0,0.0697]
[1735620073280,0.055057,92656.0,92654.0,0.3648]
[1735620073578,0.055057,92656.0,92654.0,0.004]
[1735620074680,0.25427346,92658.0,92654.0,0.004]
[1735620074878,0.054057,92656.0,92654.0,0.004]
[1735620075778,0.25527346,92658.0,92654.0,0.002]
[1735620076580,0.05206,92651.0,92650.0,0.0697]
[1735620077971,0.05206,92651.0,92644.0,0.088264]
[1735620078474,0.05106,92651.0,92644.0,0.088264]
[1735620078672,0.05006,92651.0,92644.0,0.088264]
[1735620079070,0.05001052,92651.0,92644.0,0.088264]
[1735620079280,0.05201052,92651.0,92649.0,0.3628]
[1735620081183,0.05201052,92651.0,92649.0,0.416861]
[1735620081374,0.0199835,92674.0,92649.0,0.6628]
[1735620081573,0.054047,92673.0,92671.0,0.3608]
[1735620081772,0.054047,92673.0,92672.0,1.568]
[1735620081972,0.054047,92673.0,92672.0,0.068]
[1735620083472,0.055047,92673.0,92672.0,0.068]
[1735620086275,0.0016191,92675.0,92672.0,0.068]
[1735620086483,0.054039,92687.0,92672.0,0.068]
[1735620086792,0.054039,92687.0,92686.0,0.3608]
[1735620087176,0.054034,92695.0,92686.0,0.3608]
[1735620087683,0.054034,92695.0,92686.0,0.3408]
[1735620087879,0.054034,92695.0,92692.0,0.054036]
[1735620088179,0.054034,92695.0,92693.0,0.0716]
[1735620089379,0.3748,92694.0,92693.0,0.0716]
[1735620092488,0.3748,92694.0,92693.0,0.0516]
[1735620094081,0.054037,92690.0,92689.0,0.0343]
[1735620095581,0.065037,92690.0,92689.0,0.0343]
[1735620095986,0.054039,92687.0,92686.0,0.3408]
[1735620097188,0.057039,92687.0,92686.0,0.3408]
[1735620097579,0.057039,92687.0,92686.0,0.3208]
[1735620098284,0.063039,92687.0,92686.0,0.3208]
[1735620102591,0.063039,92687.0,92686.0,0.3008]
[1735620104284,0.063039,92687.0,92681.0,0.054042]
[1735620104285,0.05404,92686.0,92681.0,0.054042]
[1735620104493,0.05404,92686.0,92683.0,0.3608]
[1735620104688,0.009,92687.0,92686.0,0.054039]
[1735620104998,0.054035,92694.0,92690.0,0.054037]
[1735620105189,0.054035,92694.0,92692.0,0.3608]
[1735620105795,0.054035,92694.0,92693.0,0.0339]
[1735620106689,0.063035,92694.0,92693.0,0.0339]
[1735620106891,0.068035,92694.0,92693.0,0.0339]
[1735620107598,0.068035,92694.0,92693.0,0.0139]
[1735620108596,0.067035,92694.0,92693.0,0.0149]
[1735620108993,0.066035,92694.0,92693.0,0.0149]
[1735620110493,0.066035,92694.0,92693.0,0.001]
[1735620112499,0.066035,92694.0,92692.0,0.3418]
[1735620113701,0.066035,92694.0,92692.0,0.3428]
[1735620117508,0.066035,92694.0,92692.0,0.3228]
[1735620122603,0.066035,92694.0,92692.0,0.3028]
[1735620127503,0.066035,92694.0,92692.0,0.2828]
[1735620129107,0.0354,92693.0,92692.0,0.2828]
[1735620131207,0.0394,92693.0,92692.0,0.2828]
[1735620131514,0.05404,92686.0,92683.0,0.414841]
[1735620131711,0.054041,92685.0,92683.0,0.414841]
[1735620132007,0.054041,92685.0,92683.0,0.3608]
[1735620132608,0.054041,92685.0,92683.0,0.3408]
[1735620133112,0.058041,92685.0,92683.0,0.3408]
[1735620133907,0.060041,92685.0,92683.0,0.3408]
[1735620136317,0.060041,92685.0,92684.0,0.0332]
[1735620137709,0.061041,92685.0,92684.0,0.0332]
[1735620138113,0.061041,92685.0,92684.0,0.0132]
[1735620141627,0.061041,92685.0,92683.0,0.3408]
[1735620142615,0.061041,92685.0,92683.0,0.3208]
[1735620144007,0.058041,92685.0,92683.0,0.3208]
[1735620144206,0.060041,92685.0,92683.0,0.3208]
[1735620146127,0.054044,92678.0,92673.0,0.054047]
[1735620146326,0.054046,92676.0,92673.0,0.054047]
[1735620147023,0.054046,92676.0,92672.0,0.01933253]
[1735620147219,0.054046,92676.0,92674.0,0.054046]
[1735620147415,0.054046,92676.0,92674.0,0.034046]
[1735620148310,0.055046,92676.0,92674.0,0.034046]
[1735620148523,0.055046,92676.0,92674.0,0.035046]
[1735620152526,0.055046,92676.0,92675.0,0.3608]
[1735620152527,0.001,92676.0,92675.0,0.3608]
[1735620153324,0.3608,92699.0,92688.0,0.054038]
[1735620153518,0.3608,92699.0,92675.0,0.6608]
[1735620153519,0.054036,92693.0,92690.0,0.054037]
[1735620153835,0.054036,92693.0,92691.0,0.0347]
[1735620154327,0.054036,92693.0,92691.0,1.5347]
[1735620155426,0.066036,92693.0,92691.0,1.5357]
[1735620156533,0.066036,92693.0,92691.0,1.5698]
[1735620156930,0.066036,92693.0,92691.0,0.0698]
[1735620157228,0.066036,92693.0,92691.0,0.08956061]
[1735620157433,0.066036,92693.0,92691.0,0.06956061]
[1735620162035,0.066036,92693.0,92691.0,0.0498]
[1735620162231,0.066036,92693.0,92691.0,0.0351]
[1735620162535,0.066036,92693.0,92691.0,0.0151]
[1735620167525,0.066036,92693.0,92690.0,0.049137]
[1735620168740,0.058036,92693.0,92690.0,0.049137]
[1735620168938,0.065036,92693.0,92690.0,0.049137]
[1735620169329,0.054037,92691.0,92689.0,0.0356]
[1735620170640,0.058037,92691.0,92689.0,0.0356]
[1735620171432,0.057037,92691.0,92689.0,0.0356]
[1735620171644,0.064037,92691.0,92689.0,0.0366]
[1735620172342,0.061037,92691.0,92689.0,0.0356]
[1735620172536,0.061037,92691.0,92689.0,0.0156]
[1735620173433,0.060037,92691.0,92688.0,0.07328664]
[1735620175437,0.056037,92691.0,92688.0,0.07328664]
[1735620175736,0.060037,92691.0,92688.0,0.07328664]
[1735620177541,0.060037,92691.0,92688.0,0.05328664]
[1735620177734,0.060037,92691.0,92688.0,0.07290783]
[1735620179040,0.060037,92691.0,92688.0,0.01962119]
[1735620179239,0.060037,92691.0,92684.0,1.50056]
[1735620179240,0.060037,92691.0,92689.0,0.054037]
[1735620180242,0.058037,92691.0,92689.0,0.054037]
[1735620180540,0.056037,92691.0,92689.0,0.054037]
[1735620180748,0.060037,92691.0,92689.0,0.054037]
[1735620182646,0.060037,92691.0,92689.0,0.034037]
[1735620183238,0.07349717,92720.0,92689.0,0.034037]
[1735620183239,0.3608,92754.0,92701.0,0.3608]
[1735620183444,0.3608,92754.0,92721.0,0.775619]
[1735620183445,0.0932782,92722.0,92721.0,0.775619]
[1735620183648,0.3608,92754.0,92721.0,0.775619]
[1735620183649,0.0329,92742.0,92732.0,0.054013]
[1735620183851,0.0329,92742.0,92741.0,0.3608]
[1735620184840,0.0329,92742.0,92741.0,1.8608]
[1735620185839,0.0419,92742.0,92741.0,1.8608]
[1735620186345,0.0419,92742.0,92741.0,1.8618]
[1735620186540,0.0459,92742.0,92741.0,1.8618]
[1735620187148,0.0339,92742.0,92741.0,1.8608]
[1735620187351,0.0349,92742.0,92741.0,1.8608]
[1735620187651,0.0349,92742.0,92741.0,0.3408]
[1735620188347,0.054011,92735.0,92733.0,0.3608]
[1735620188543,0.0337,92734.0,92733.0,0.3608]
[1735620189147,0.0337,92734.0,92720.0,0.13196278]
[1735620189148,0.054018,92723.0,92715.0,0.19401954]
[1735620189348,0.054018,92723.0,92713.0,0.054023]
[1735620189843,0.054018,92723.0,92710.0,0.3608]
[1735620190350,0.057018,92723.0,92710.0,0.3608]
[1735620190940,0.062018,92723.0,92710.0,0.3608]
[1735620191136,0.054025,92711.0,92710.0,0.3608]
[1735620192441,0.054025,92711.0,92710.0,0.3408]
[1735620193348,0.059025,92711.0,92710.0,0.3408]
[1735620193942,0.062025,92711.0,92710.0,0.3408]
[1735620195941,0.34149237,92725.0,92710.0,0.3408]
[1735620196942,0.054025,92711.0,92710.0,0.3408]
[1735620198242,0.054025,92711.0,92710.0,0.3208]
[1735620199448,0.059025,92711.0,92710.0,0.3208]
[1735620200242,0.054025,92711.0,92710.0,0.3208]
[1735620200443,0.054025,92711.0,92710.0,1.8208]
[1735620201253,0.056025,92711.0,92710.0,1.8208]
[1735620201852,0.056025,92711.0,92710.0,0.3208]
[1735620202439,0.056025,92711.0,92710.0,0.3008]
[1735620202653,0.061025,92711.0,92710.0,0.3018]
[1735620202855,0.061025,92711.0,92710.0,0.001]
[1735620204651,0.056025,92711.0,92702.0,0.00161803]
[1735620204948,0.056025,92711.0,92700.0,0.3608]
[1735620204949,0.054031,92701.0,92700.0,0.3608]
[1735620206756,0.055031,92701.0,92700.0,0.3608]
[1735620207051,0.057031,92701.0,92700.0,0.3608]
[1735620207549,0.057031,92701.0,92700.0,0.3408]
[1735620208244,0.003,92701.0,92691.0,0.0332]
[1735620208454,0.054036,92693.0,92691.0,0.0332]
[1735620209357,0.054036,92693.0,92691.0,0.0342]
[1735620209658,0.054036,92693.0,92691.0,0.0362]
[1735620212258,0.054036,92693.0,92692.0,1.5]
[1735620212456,0.054036,92693.0,92691.0,0.0362]
[1735620213463,0.054036,92693.0,92692.0,0.002]
[1735620214160,0.054036,92693.0,92691.0,0.0352]
[1735620216062,0.054036,92693.0,92692.0,0.002]
[1735620216561,0.054036,92693.0,92691.0,0.0362]
[1735620217263,0.054036,92693.0,92691.0,0.0352]
[1735620217655,0.3608,92698.0,92690.0,0.3608]
[1735620217855,0.052037,92691.0,92690.0,0.3608]
[1735620218058,0.052037,92691.0,92681.0,0.0335]
[1735620218059,0.054042,92682.0,92681.0,0.0335]
[1735620218256,0.3608,92689.0,92672.0,0.054047]
[1735620218459,0.054048,92671.0,92669.0,0.3608]
[1735620219060,0.054048,92671.0,92669.0,0.414849]
[1735620219262,0.053048,92671.0,92669.0,0.414849]
[1735620219769,0.051048,92671.0,92669.0,0.414849]
[1735620220358,0.051048,92671.0,92669.0,0.419849]
[1735620220758,0.052048,92671.0,92669.0,0.428849]
[1735620238768,0.052048,92671.0,92669.0,0.426849]
[1735620239477,0.051048,92671.0,92669.0,0.417849]
[1735620239683,0.051048,92671.0,92669.0,0.418849]
[1735620240083,0.051048,92671.0,92669.0,0.415849]
[1735620240380,0.051048,92671.0,92669.0,0.417849]
[1735620244391,0.051048,92671.0,92669.0,0.3638]
[1735620246990,0.051048,92671.0,92669.0,0.003]
[1735620251490,0.0321,92670.0,92669.0,0.003]
[1735620252990,0.1007,92670.0,92669.0,0.003]
[1735620254281,0.1007,92670.0,92661.0,0.3608]
[1735620254485,0.1007,92670.0,92669.0,0.002]
[1735620255384,0.1007,92670.0,92669.0,0.00073927]
[1735620255578,0.054049,92669.0,92661.0,0.3688]
[1735620255789,0.054053,92662.0,92661.0,0.3688]
[1735620256392,0.053053,92662.0,92661.0,0.3668]
[1735620256692,0.413853,92662.0,92661.0,0.006]
[1735620257295,0.05206,92651.0,92650.0,0.07352946]
[1735620257598,0.054061,92649.0,92648.0,0.00161873]
[1735620258296,0.051061,92649.0,92648.0,0.00161873]
[1735620258497,0.049061,92649.0,92648.0,0.00161873]
[1735620258796,0.050061,92649.0,92648.0,0.00461873]
[1735620259395,0.050061,92649.0,92648.0,0.00861873]
[1735620260096,0.050061,92649.0,92648.0,0.007]
[1735620262385,0.06814863,92649.0,92648.0,0.007]
[1735620266989,0.07014863,92649.0,92648.0,0.003]
[1735620267297,0.07014863,92649.0,92637.0,0.3608]
[1735620267298,0.054067,92638.0,92637.0,0.3608]
[1735620269390,0.054067,92638.0,92637.0,0.3618]
[1735620269799,0.054067,92638.0,92637.0,0.001]
[1735620282996,0.054067,92638.0,92637.0,0.3618]
[1735620286011,0.054067,92638.0,92637.0,0.001]
[1735620289693,0.3608,92646.0,92637.0,0.001]
[1735620289899,0.054058,92656.0,92649.0,0.054061]
[1735620290108,0.05406,92651.0,92650.0,0.0342]
[1735620291911,0.05806,92651.0,92650.0,0.0342]
[1735620292608,0.05806,92651.0,92650.0,0.0142]
[1735620293204,0.06006,92651.0,92650.0,0.0142]
[1735620293406,0.054062,92648.0,92645.0,0.3608]
[1735620293601,0.006,92651.0,92645.0,0.3608]
[1735620293811,0.054067,92640.0,92636.0,0.24808754]
[1735620294008,0.054067,92639.0,92636.0,0.24808754]
[1735620294214,0.3608,92647.0,92636.0,0.24808754]
[1735620294417,0.3608,92647.0,92637.0,0.0735993]
[1735620294716,0.054066,92640.0,92637.0,0.0735993]
[1735620294910,0.054068,92638.0,92636.0,0.19401954]
[1735620295306,0.054068,92638.0,92630.0,0.1066993]
[1735620295307,0.054069,92636.0,92630.0,0.1066993]
[1735620296218,0.053069,92636.0,92630.0,0.0331]
[1735620296513,0.3835776,92647.0,92630.0,0.0331]
[1735620296514,0.054071,92633.0,92630.0,0.0331]
[1735620296917,0.3835776,92647.0,92635.0,0.001]
[1735620297117,0.054069,92636.0,92635.0,0.001]
[1735620298812,0.054072,92630.0,92626.0,0.47293443]
[1735620299123,0.054074,92627.0,92626.0,0.3608]
[1735620300212,0.053074,92627.0,92626.0,0.3608]
[1735620301617,0.054074,92627.0,92626.0,0.3608]
[1735620302022,0.054074,92627.0,92626.0,0.3628]
[1735620307123,0.054074,92627.0,92626.0,0.002]
[1735620315221,0.23750407,92630.0,92626.0,0.002]
[1735620316027,0.054074,92627.0,92626.0,0.002]
[1735620317343,0.052083,92612.0,92610.0,0.073619]
[1735620317524,0.052083,92612.0,92609.0,0.085984]
[1735620318018,0.051083,92612.0,92609.0,0.085984]
[1735620318223,0.049083,92612.0,92609.0,0.085984]
[1735620318835,0.050083,92612.0,92609.0,0.087984]
[1735620319225,0.054084,92610.0,92609.0,0.087984]
[1735620319424,0.054084,92610.0,92609.0,0.0359]
[1735620319828,0.054084,92610.0,92609.0,0.0339]
[1735620320035,0.054084,92610.0,92609.0,0.0359]
[1735620320735,0.054084,92610.0,92609.0,0.0339]
[1735620321534,0.055084,92610.0,92609.0,0.0339]
[1735620321928,0.055084,92610.0,92609.0,0.0319]
[1735620333536,0.055084,92610.0,92608.0,0.36136]
[1735620333734,0.055084,92610.0,92608.0,0.3608]
[1735620339330,0.059084,92610.0,92608.0,0.3608]
[1735620340043,0.061084,92610.0,92608.0,0.3608]
[1735620342436,0.061084,92610.0,92608.0,0.3408]
[1735620345750,0.054085,92608.0,92600.0,0.1]
[1735620346952,0.060085,92608.0,92600.0,0.1]
[1735620347449,0.060085,92608.0,92600.0,0.08161954]
[1735620347653,0.054089,92601.0,92600.0,0.08161954]
[1735620350752,0.055089,92601.0,92600.0,0.08161954]
[1735620352654,0.055089,92601.0,92600.0,0.06161954]
[1735620357556,0.055089,92601.0,92600.0,0.04161954]
[1735620359152,0.055089,92601.0,92600.0,0.07741954]
[1735620361160,0.055089,92601.0,92600.0,0.04161954]
[1735620362454,0.055089,92601.0,92600.0,0.02161954]
[1735620366660,0.054096,92589.0,92577.0,0.19401954]
[1735620367359,0.054096,92589.0,92578.0,0.19401954]
[1735620368563,0.054096,92589.0,92577.0,0.19401954]
[1735620368765,0.055096,92589.0,92577.0,0.19401954]
[1735620369561,0.055096,92589.0,92575.0,0.0706]
[1735620372755,0.054103,92577.0,92575.0,0.0706]
[1735620373965,0.055103,92577.0,92575.0,0.0706]
[1735620374353,0.055103,92577.0,92575.0,0.0341]
[1735620375059,0.056103,92577.0,92575.0,0.0341]
[1735620375651,0.054104,92575.0,92574.0,0.3608]
[1735620376860,0.055104,92575.0,92574.0,0.3608]
[1735620378867,0.056104,92575.0,92574.0,0.3608]
[1735620395179,0.054106,92572.0,92571.0,0.00162004]
[1735620395482,0.054106,92572.0,92571.0,0.36242004]
[1735620396274,0.055106,92572.0,92571.0,0.36242004]
[1735620396475,0.056106,92572.0,92571.0,0.36242004]
[1735620398586,0.055106,92572.0,92571.0,0.36242004]
[1735620398784,0.054106,92572.0,92571.0,0.36242004]
[1735620399082,0.055106,92572.0,92571.0,0.36242004]
[1735620399384,0.056106,92572.0,92571.0,0.36242004]
[1735620399586,0.055106,92572.0,92571.0,0.36242004]